bitfinex/quotes_SOLUSD_20250912
["timestamp","ask_amount","ask_price","bid_price","bid_amount"]
[1757689801748,10.9171478,238.92,238.88,4.21609394]
[1757689801928,9.8648311,238.92,238.88,0.03]
[1757689802542,9.8648311,238.92,238.88,0.72]
[1757689802543,1.05211273,238.91,238.88,0.72]
[1757689802750,1.05211273,238.9,238.88,0.72]
[1757689803044,1.05211273,238.91,238.88,0.72]
[1757689803239,10.91694383,238.9,238.88,0.03]
[1757689803449,10.91694383,238.89,238.88,0.03]
[1757689804030,10.91692536,238.89,238.88,0.03]
[1757689804348,10.91712631,238.89,238.88,0.03]
[1757689804647,1.05229521,238.89,238.88,0.03]
[1757689805427,1.05229521,238.89,238.88,0.72]
[1757689805731,9.8648311,238.96,238.88,0.72]
[1757689805929,1.05167884,238.95,238.88,0.72]
[1757689806241,1.05167884,238.94,238.89,14.65109464]
[1757689806442,0.06,238.98,238.9,0.69]
[1757689806645,1.05191203,238.97,238.9,0.69]
[1757689806834,1.05191203,238.96,238.9,0.69]
[1757689807036,1.05191203,238.95,238.9,0.69]
[1757689807242,1.05191203,238.94,238.9,0.69]
[1757689807437,9.9248311,238.98,238.9,0.69]
[1757689807626,1.05217139,238.97,238.9,0.69]
[1757689807827,1.05217139,238.96,238.9,0.69]
[1757689808039,1.05217139,238.95,238.9,0.69]
[1757689808248,1.05217139,238.94,238.91,4.18567661]
[1757689808436,1.05217139,238.93,238.92,0.69]
[1757689808637,1.05217139,238.93,238.91,4.18567661]
[1757689808950,14.04960682,238.97,238.91,4.18567661]
[1757689809253,9.8648311,238.94,238.89,4.18594792]
[1757689809455,9.8648311,238.92,238.88,0.03]
[1757689809640,9.8648311,238.89,238.88,0.03]
[1757689809950,10.91764185,238.89,238.88,0.03]
[1757689810351,1.05281075,238.89,238.88,0.03]
[1757689811057,1.05281075,238.89,238.88,0.72]
[1757689811250,1.05281075,238.89,238.88,0.03]
[1757689811554,10.91764185,238.89,238.88,0.03]
[1757689812050,1.05281075,238.89,238.88,0.03]
[1757689812553,10.91764185,238.89,238.88,0.03]
[1757689812749,15.64366889,238.89,238.88,0.03]
[1757689813449,15.64201419,238.89,238.88,0.03]
[1757689815062,50.14201419,238.89,238.88,0.03]
[1757689815236,50.12201419,238.89,238.88,0.03]
[1757689816861,63.7176082,238.89,238.88,0.03]
[1757689818252,29.2376082,238.89,238.88,0.03]
[1757689818571,63.7176082,238.89,238.88,0.03]
[1757689819465,50.12201419,238.89,238.88,0.03]
[1757689820462,44.26403717,238.89,238.88,0.03]
[1757689821135,39.71718309,238.89,238.88,0.03]
[1757689821335,43.72403717,238.89,238.88,0.03]
[1757689821555,1.05115605,238.89,238.88,0.75]
[1757689822141,1.05115605,238.9,238.88,0.75]
[1757689822340,1.05115605,238.89,238.88,0.03]
[1757689822556,38.54685408,238.91,238.88,0.03]
[1757689822557,1.05115605,238.9,238.88,0.03]
[1757689822746,1.05115605,238.89,238.88,0.03]
[1757689822946,1.05115605,238.89,238.88,0.75]
[1757689824358,1.05115605,238.9,238.88,0.75]
[1757689824541,0.06,238.91,238.89,4.18602704]
[1757689824740,1.04928526,238.9,238.89,4.18602704]
[1757689824945,0.06,238.91,238.89,4.90602704]
[1757689825262,0.06,238.91,238.9,0.72]
[1757689825460,1.10928526,238.91,238.88,0.03]
[1757689825756,4.00685408,238.89,238.88,0.03]
[1757689825959,5.05613934,238.89,238.88,0.03]
[1757689826260,65.53613934,238.89,238.88,0.03]
[1757689826440,69.72216638,238.89,238.88,0.03]
[1757689827649,31.2353123,238.89,238.88,0.03]
[1757689827857,43.72216638,238.89,238.88,0.03]
[1757689828350,50.12860261,238.89,238.88,0.03]
[1757689828738,49.58860261,238.89,238.88,0.03]
[1757689829364,50.12860261,238.89,238.88,0.03]
[1757689829657,49.58860261,238.89,238.88,0.03]
[1757689830559,15.10860261,238.89,238.88,0.03]
[1757689830744,49.58860261,238.89,238.88,0.03]
[1757689831262,13.59559401,238.84,238.81,0.1]
[1757689831562,9.87329031,238.82,238.81,0.1]
[1757689831857,45.38257557,238.82,238.81,0.1]
[1757689832645,45.38288828,238.82,238.81,0.1]
[1757689833170,49.57014227,238.82,238.81,0.1]
[1757689833359,5.23685196,238.82,238.81,0.1]
[1757689833557,1.04959797,238.82,238.81,0.82]
[1757689834067,10.92288828,238.82,238.81,0.82]
[1757689834960,10.92288828,238.82,238.81,0.1]
[1757689835841,24.11838276,238.82,238.81,0.1]
[1757689836865,13.73509245,238.82,238.81,0.1]
[1757689837070,1.04959797,238.82,238.81,0.82]
[1757689837265,45.38288828,238.82,238.81,0.1]
[1757689837670,35.50959797,238.82,238.81,0.1]
[1757689837853,44.99869795,238.82,238.81,0.1]
[1757689838375,44.99869795,238.82,238.81,0.13]
[1757689839876,35.12540764,238.82,238.81,0.13]
[1757689840166,58.01110799,238.82,238.81,0.13]
[1757689840670,37.53089233,238.82,238.81,0.13]
[1757689840875,71.99089233,238.82,238.81,0.13]
[1757689842366,68.61075582,238.82,238.81,0.13]
[1757689844075,83.2661448,238.82,238.73,0.72]
[1757689844278,6.4931538,238.74,238.73,0.72]
[1757689844482,42.00065768,238.74,238.73,0.72]
[1757689844770,39.69616099,238.74,238.71,0.1]
[1757689844974,0.32750388,238.74,238.72,0.72]
[1757689845181,40.9531538,238.78,238.72,0.72]
[1757689845660,12.50241004,238.82,238.72,0.72]
[1757689845976,6.4931538,238.8,238.72,0.72]
[1757689846276,40.9531538,238.8,238.72,0.72]
[1757689846774,40.9531538,238.8,238.73,4.18883257]
[1757689847076,40.9531538,238.8,238.74,0.66]
[1757689847375,6.4931538,238.81,238.74,0.66]
[1757689847881,40.9531538,238.81,238.74,0.66]
[1757689848090,34.46,238.81,238.74,0.66]
[1757689848391,34.46,238.81,238.75,4.18848167]
[1757689848761,34.46,238.81,238.76,0.66]
[1757689849356,40.9531538,238.81,238.77,0.66]
[1757689849568,6.4931538,238.8,238.77,0.66]
[1757689849993,40.9531538,238.81,238.74,4.18865711]
[1757689850153,34.46,238.81,238.78,0.66]
[1757689850359,34.46,238.81,238.79,0.66]
[1757689850581,34.46,238.81,238.8,0.66]
[1757689851486,4.18653473,238.87,238.8,4.84760469]
[1757689851794,2.56489555,238.85,238.8,0.66]
[1757689852277,2.56489555,238.85,238.81,0.66]
[1757689853194,2.56489555,238.84,238.81,0.66]
[1757689853895,2.56489555,238.86,238.82,0.72]
[1757689854195,2.56489555,238.83,238.78,0.72]
[1757689854396,2.56489555,238.83,238.76,0.72]
[1757689854593,35.09,238.85,238.76,0.72]
[1757689854893,37.00489555,238.82,238.76,0.72]
[1757689855100,2.56489555,238.8,238.75,4.18839745]
[1757689855294,2.56489555,238.8,238.75,0.72]
[1757689855492,2.56489555,238.8,238.76,0.72]
[1757689856499,2.56489555,238.78,238.71,81.0]
[1757689856798,35.09,238.77,238.71,0.1]
[1757689857108,2.56489555,238.74,238.71,0.1]
[1757689857290,1.04653659,238.73,238.71,0.1]
[1757689857606,3.61143214,238.72,238.71,0.1]
[1757689857781,4.26143214,238.72,238.71,0.1]
[1757689857987,3.61143214,238.72,238.71,0.1]
[1757689858692,1.69653659,238.72,238.71,0.1]
[1757689858873,42.87044018,238.72,238.71,0.1]
[1757689859272,5.23554463,238.72,238.71,0.1]
[1757689859480,42.22044018,238.72,238.71,0.1]
[1757689859899,42.87044018,238.72,238.71,0.1]
[1757689861199,8.45044018,238.72,238.71,0.1]
[1757689861405,42.87044018,238.72,238.71,0.1]
[1757689861601,38.03143214,238.72,238.71,0.1]
[1757689862307,42.87044018,238.72,238.71,0.1]
[1757689863395,1.04653659,238.72,238.71,0.1]
[1757689863776,35.46653659,238.74,238.71,0.82]
[1757689863987,1.04653659,238.73,238.71,0.1]
[1757689864293,1.04653659,238.72,238.71,0.1]
[1757689864502,1.04653659,238.73,238.71,0.1]
[1757689864801,3.61143214,238.72,238.71,0.1]
[1757689864977,4.26143214,238.72,238.71,0.1]
[1757689865491,1.69653659,238.72,238.71,0.1]
[1757689865691,4.26143214,238.72,238.71,0.1]
[1757689865913,36.11653659,238.72,238.71,0.1]
[1757689866195,3.61143214,238.72,238.71,0.1]
[1757689866401,42.22044018,238.72,238.71,0.1]
[1757689866777,1.04653659,238.72,238.71,0.82]
[1757689866977,4.18835544,238.76,238.71,0.82]
[1757689867202,35.46653659,238.75,238.71,0.82]
[1757689867375,1.04653659,238.74,238.71,0.82]
[1757689867979,1.69653659,238.74,238.71,0.1]
[1757689868201,1.04653659,238.73,238.71,0.1]
[1757689868406,1.04653659,238.72,238.71,0.1]
[1757689868699,1.04653659,238.72,238.71,0.82]
[1757689868899,1.04653659,238.72,238.71,0.1]
[1757689869279,1.04653659,238.72,238.71,0.82]
[1757689869479,1.04653659,238.72,238.71,5.00918352]
[1757689870704,1.04653659,238.72,238.71,0.1]
[1757689871411,1.04653659,238.72,238.71,0.82]
[1757689871589,1.04653659,238.72,238.71,0.1]
[1757689871792,3.61143214,238.72,238.71,0.1]
[1757689872283,1.04653659,238.72,238.71,0.1]
[1757689872486,3.61143214,238.72,238.71,0.1]
[1757689872691,4.26143214,238.72,238.71,0.1]
[1757689872887,5.88554463,238.72,238.71,0.1]
[1757689873192,8.45044018,238.72,238.71,0.1]
[1757689874482,1.04653659,238.72,238.71,0.1]
[1757689874681,38.01143214,238.72,238.71,0.1]
[1757689874878,38.01143214,238.72,238.71,0.13]
[1757689875099,1.04653659,238.72,238.71,0.13]
[1757689875306,35.44653659,238.72,238.71,0.85]
[1757689875810,1.04653659,238.72,238.71,5.03918352]
[1757689876904,0.06,238.74,238.71,5.03918352]
[1757689876905,0.06,238.74,238.71,15.51214234]
[1757689877092,0.06,238.74,238.72,0.72]
[1757689878210,0.06,238.74,238.73,4.18883257]
[1757689878702,0.06,238.74,238.73,4.90883257]
[1757689883012,0.06,238.74,238.71,5.03902057]
[1757689883214,0.06,238.74,238.72,0.72]
[1757689883392,0.06,238.74,238.71,0.13]
[1757689883594,1.04650542,238.73,238.71,0.13]
[1757689883809,1.04650542,238.72,238.71,0.13]
[1757689884601,3.61140097,238.72,238.71,0.13]
[1757689884915,1.04650542,238.72,238.71,0.13]
[1757689885817,3.61140097,238.72,238.71,0.13]
[1757689886009,1.04650542,238.72,238.71,0.13]
[1757689887094,3.61140097,238.72,238.71,0.13]
[1757689887996,8.50040901,238.72,238.71,0.13]
[1757689889894,42.86040901,238.72,238.71,0.13]
[1757689890295,8.50040901,238.72,238.71,0.13]
[1757689890497,42.86040901,238.72,238.71,0.13]
[1757689890905,8.50040901,238.72,238.71,0.13]
[1757689891110,42.86040901,238.72,238.71,0.13]
[1757689891319,56.45600302,238.72,238.71,0.13]
[1757689895826,26.0,238.69,238.68,0.03]
[1757689896002,29.61140097,238.69,238.68,0.03]
[1757689896210,29.61140097,238.69,238.61,0.1]
[1757689896211,26.0,238.67,238.61,0.1]
[1757689896414,2.56489555,238.62,238.61,0.1]
[1757689896605,3.61140097,238.62,238.61,0.1]
[1757689897427,3.61140097,238.62,238.61,0.77]
[1757689899810,3.61140097,238.62,238.61,0.1]
[1757689900033,19.53286298,238.62,238.61,0.1]
[1757689900336,42.14216452,238.62,238.61,0.1]
[1757689900630,5.23726897,238.62,238.61,0.1]
[1757689900826,42.14216452,238.62,238.61,0.1]
[1757689901205,54.5646896,238.62,238.61,0.1]
[1757689901409,55.2646896,238.62,238.61,0.1]
[1757689901626,55.2446896,238.62,238.61,0.1]
[1757689902723,18.35979405,238.62,238.61,0.1]
[1757689902906,55.2446896,238.62,238.61,0.1]
[1757689903308,13.59559401,238.61,238.5,0.67]
[1757689903530,2.56489555,238.52,238.48,4.19306313]
[1757689903738,2.56489555,238.52,238.49,4.19303627]
[1757689903908,2.56489555,238.52,238.48,4.19321385]
[1757689904208,2.56489555,238.52,238.51,0.77]
[1757689904403,5.06490462,238.53,238.51,0.77]
[1757689904830,5.06490462,238.53,238.51,0.1]
[1757689905521,1.04744954,238.53,238.51,0.1]
[1757689905726,4.01745508,238.52,238.51,0.1]
[1757689905925,5.06490462,238.52,238.51,0.1]
[1757689906626,1.04744954,238.52,238.51,0.82]
[1757689906831,5.06490462,238.52,238.51,0.82]
[1757689907014,4.01745508,238.52,238.51,0.82]
[1757689907613,2.18711611,238.59,238.51,0.82]
[1757689907814,4.01745508,238.56,238.51,0.82]
[1757689908513,2.10890819,238.54,238.42,26.0]
[1757689908837,36.42890819,238.58,238.46,26.0]
[1757689909043,1.04737342,238.57,238.46,26.0]
[1757689909223,2.10890819,238.58,238.46,26.0]
[1757689909532,34.32,238.59,238.46,26.0]
[1757689909740,2.10890819,238.58,238.5,26.0]
[1757689910038,2.10890819,238.6,238.5,26.0]
[1757689910336,2.10890819,238.58,238.5,26.0]
[1757689910523,2.10890819,238.58,238.5,26.72]
[1757689911423,0.1,238.59,238.51,14.67443712]
[1757689911938,2.10890819,238.58,238.51,14.67443712]
[1757689912318,0.1,238.59,238.51,14.67443712]
[1757689912547,2.10890819,238.58,238.51,14.67443712]
[1757689912748,0.1,238.59,238.51,14.67443712]
[1757689913445,0.1,238.59,238.52,0.72]
[1757689913828,0.1,238.59,238.54,26.0]
[1757689914031,0.1,238.59,238.55,0.7]
[1757689914240,0.1,238.59,238.56,0.7]
[1757689914746,0.1,238.59,238.57,0.7]
[1757689914944,0.1,238.59,238.55,80.9]
[1757689915135,0.1,238.59,238.55,81.6]
[1757689915447,0.1,238.59,238.56,14.6713615]
[1757689915742,0.1,238.59,238.56,4.19181757]
[1757689915945,0.1,238.59,238.55,80.9]
[1757689916157,0.1,238.59,238.55,85.09194737]
[1757689916348,6.12636327,238.58,238.55,85.09194737]
[1757689916533,2.10890819,238.58,238.55,85.09194737]
[1757689916845,6.12636327,238.58,238.55,85.09194737]
[1757689917234,6.12636327,238.58,238.48,26.0]
[1757689917235,4.01745508,238.56,238.46,0.03]
[1757689917543,6.12636327,238.5,238.46,0.03]
[1757689917744,2.10890819,238.5,238.46,0.03]
[1757689922254,2.10890819,238.53,238.46,0.03]
[1757689922543,3.15647069,238.53,238.46,0.03]
[1757689922745,3.15647069,238.55,238.46,80.93]
[1757689922950,3.15647069,238.55,238.46,0.03]
[1757689923245,2.10890819,238.52,238.46,0.03]
[1757689923446,2.10890819,238.55,238.46,0.03]
[1757689923668,3.15634602,238.55,238.46,0.03]
[1757689924751,2.10890819,238.57,238.46,0.03]
[1757689924950,2.10890819,238.57,238.46,34.29]
[1757689925131,3.15632701,238.57,238.46,34.29]
[1757689925331,2.10890819,238.55,238.46,34.99]
[1757689925555,2.10890819,238.55,238.47,14.67689855]
[1757689926250,4.01745508,238.54,238.47,4.19339958]
[1757689926438,2.10890819,238.51,238.47,4.19339958]
[1757689927443,2.10890819,238.51,238.46,0.03]
[1757689927656,3.15647615,238.51,238.46,0.03]
[1757689927844,1.70756796,238.5,238.46,0.03]
[1757689928247,1.04756796,238.49,238.46,0.03]
[1757689928731,2.10890819,238.47,238.46,0.03]
[1757689928938,3.15662729,238.47,238.46,0.03]
[1757689929131,3.81662729,238.47,238.46,0.03]
[1757689929869,7.83408237,238.47,238.46,0.03]
[1757689930161,3.81662729,238.47,238.46,0.03]
[1757689932146,2.76890819,238.47,238.46,0.03]
[1757689932350,3.81668079,238.47,238.46,0.03]
[1757689933157,1.0477726,238.47,238.46,0.03]
[1757689933950,3.15668079,238.47,238.46,0.03]
[1757689934153,1.0477726,238.47,238.46,0.73]
[1757689934352,1.0477726,238.47,238.46,0.03]
[1757689936064,1.04763589,238.47,238.46,0.03]
[1757689937143,2.10890819,238.49,238.46,0.03]
[1757689937340,1.04754747,238.48,238.46,0.03]
[1757689937545,1.04754747,238.47,238.46,0.03]
[1757689937754,1.04754747,238.47,238.46,80.93]
[1757689938362,1.04754747,238.47,238.46,85.12357544]
[1757689940244,1.04754747,238.47,238.46,85.82357544]
[1757689940443,0.06,238.5,238.46,96.30751404]
[1757689940761,1.04753495,238.49,238.46,96.30751404]
[1757689940960,0.06,238.5,238.46,96.30751404]
[1757689941166,3.15644329,238.49,238.46,95.60751404]
[1757689941342,2.10890819,238.49,238.46,95.60751404]
[1757689941745,2.10890819,238.49,238.46,85.12357544]
[1757689941946,2.76890819,238.49,238.46,85.12357544]
[1757689942164,2.10890819,238.49,238.46,85.12357544]
[1757689942441,1.70754772,238.48,238.46,85.12357544]
[1757689942647,2.10890819,238.49,238.46,80.93]
[1757689942955,1.04764216,238.48,238.46,85.12355164]
[1757689943155,1.04764216,238.47,238.46,85.12355164]
[1757689943566,1.04764216,238.47,238.46,80.93]
[1757689943747,1.04764216,238.47,238.46,0.03]
[1757689944257,1.04764216,238.47,238.46,4.22357544]
[1757689944461,1.04764216,238.47,238.46,0.03]
[1757689945762,3.15648463,238.49,238.46,0.03]
[1757689945956,1.04757644,238.48,238.46,0.03]
[1757689946184,0.06,238.5,238.46,0.03]
[1757689946367,3.87649373,238.49,238.46,0.03]
[1757689946557,0.06,238.5,238.46,0.03]
[1757689946751,3.15647915,238.49,238.46,0.03]
[1757689946951,2.10890819,238.49,238.46,0.03]
[1757689947151,2.82890819,238.49,238.46,0.03]
[1757689947347,0.72,238.48,238.46,0.03]
[1757689948173,1.76762141,238.47,238.46,0.03]
[1757689948563,1.04762141,238.47,238.46,0.03]
[1757689949858,1.76762141,238.47,238.46,0.03]
[1757689953387,1.04762141,238.47,238.46,0.03]
[1757689953884,1.04762141,238.48,238.46,0.75]
[1757689954079,1.04754811,238.49,238.46,0.75]
[1757689954259,0.72,238.48,238.46,0.03]
[1757689954578,2.10890819,238.49,238.46,0.03]
[1757689954779,1.04760675,238.48,238.46,0.03]
[1757689954964,0.06,238.5,238.46,0.03]
[1757689955276,0.06,238.47,238.46,0.03]
[1757689955657,0.78,238.47,238.46,0.03]
[1757689956183,0.06,238.47,238.46,0.03]
[1757689957063,0.06,238.47,238.46,81.65]
[1757689957975,0.06,238.47,238.46,85.84357544]
[1757689959773,0.06,238.47,238.46,119.98357544]
[1757689960976,0.06,238.5,238.46,156.46751404]
[1757689961203,0.06,238.5,238.47,0.72]
[1757689961688,0.06,238.5,238.48,0.72]
[1757689961878,0.06,238.5,238.49,34.14]
[1757689962068,1e-08,238.5,238.49,80.9]
[1757689962392,1e-08,238.5,238.49,115.02]
[1757689962690,1e-08,238.5,238.49,115.74]
[1757689963485,0.1,238.59,238.54,14.67259159]
[1757689963704,1.04714769,238.58,238.55,0.72]
[1757689963862,1.04714769,238.57,238.56,26.0]
[1757689964383,0.1,238.59,238.56,26.0]
[1757689964563,1.04711697,238.58,238.56,26.0]
[1757689964764,0.1,238.59,238.56,26.72]
[1757689964966,1.04711042,238.58,238.56,141.73999999]
[1757689965170,0.1,238.59,238.56,141.73999999]
[1757689965366,0.1,238.59,238.56,107.61999999]
[1757689965572,0.1,238.59,238.57,4.19164186]
[1757689966862,0.1,238.59,238.57,4.91164186]
[1757689967085,0.1,238.59,238.57,4.19164186]
[1757689967277,0.1,238.59,238.57,4.91164186]
[1757689967478,0.1,238.59,238.57,4.19164186]
[1757689969571,0.1,238.59,238.58,0.72]
[1757689969771,0.1,238.59,238.58,4.91146617]
[1757689970179,0.1,238.59,238.58,39.01146617]
[1757689970378,0.1,238.59,238.58,119.91146616]
[1757689970780,0.1,238.59,238.58,119.19146616]
[1757689971094,0.1,238.59,238.58,85.09146616]
[1757689971289,0.1,238.59,238.58,119.17146616]
[1757689974578,0.1,238.59,238.58,85.09146616]
[1757689974781,0.1,238.59,238.58,119.15146616]
[1757689975177,0.76,238.59,238.58,85.09146616]
[1757689976394,0.76,238.59,238.54,36.48042257]
[1757689976395,2.10890819,238.58,238.54,85.09214628]
[1757689976593,1.70704554,238.57,238.54,85.09214628]
[1757689976798,2.76890819,238.56,238.52,4.19234522]
[1757689976990,0.66,238.55,238.52,4.19234522]
[1757689977298,3.22848633,238.55,238.5,0.03]
[1757689977482,2.56848633,238.53,238.5,0.03]
[1757689977679,1.04704554,238.52,238.5,0.03]
[1757689977877,2.10890819,238.51,238.5,0.03]
[1757689978281,3.81595373,238.51,238.5,0.03]
[1757689978478,2.76890819,238.51,238.5,0.03]
[1757689978681,1.04704554,238.52,238.5,4.22287211]
[1757689978884,0.66,238.52,238.5,4.22287211]
[1757689979198,0.66,238.51,238.5,0.03]
[1757689980675,2.10890819,238.53,238.5,0.03]
[1757689980881,2.10890819,238.57,238.5,0.69]
[1757689981088,1.04704554,238.56,238.51,14.67443712]
[1757689981292,1.04704554,238.58,238.52,34.7]
[1757689981583,2.76890819,238.57,238.52,34.04]
[1757689981782,1.04704554,238.58,238.52,34.04]
[1757689981988,1.04704554,238.58,238.53,0.66]
[1757689982288,0.16,238.59,238.55,26.0]
[1757689982486,0.66,238.58,238.52,114.93999999]
[1757689982696,0.66,238.58,238.52,80.89999999]
[1757689982902,0.66,238.58,238.53,34.04]
[1757689983101,2.26890819,238.59,238.54,14.67259159]
[1757689983298,2.26890819,238.59,238.54,15.33259159]
[1757689983506,2.92890819,238.59,238.54,14.67259159]
[1757689983894,0.66,238.58,238.54,14.67259159]
[1757689984096,0.66,238.57,238.54,95.57259158]
[1757689984298,2.26890819,238.59,238.54,85.09216901]
[1757689984500,3.31613255,238.59,238.54,96.23259158]
[1757689984898,2.26890819,238.59,238.54,96.23259158]
[1757689985085,0.16,238.59,238.54,95.57259158]
[1757689985290,1.20722436,238.59,238.55,0.66]
[1757689985510,0.16,238.59,238.56,0.66]
[1757689986100,0.16,238.59,238.54,96.23259158]
[1757689986406,0.16,238.59,238.55,0.66]
[1757689987406,0.16,238.59,238.56,14.6713615]
[1757689988191,0.16,238.59,238.56,95.57136149]
[1757689989517,0.82,238.59,238.56,85.09181756]
[1757689989693,0.16,238.59,238.56,85.09181756]
[1757689990594,2.76890819,238.58,238.56,80.89999999]
[1757689990798,0.66,238.57,238.56,85.09180373]
[1757689991114,2.10890819,238.58,238.56,85.09180373]
[1757689991313,2.76890819,238.58,238.56,85.09180373]
[1757689991498,2.10890819,238.58,238.56,85.09180373]
[1757689991705,0.66,238.57,238.56,80.89999999]
[1757689992132,1.70720109,238.57,238.56,80.89999999]
[1757689993391,0.66,238.57,238.56,80.89999999]
[1757689993620,1.70720109,238.57,238.56,80.89999999]
[1757689993828,1.04720109,238.58,238.56,85.09181756]
[1757689994002,1.20720109,238.59,238.57,0.66]
[1757689994204,0.16,238.59,238.58,0.66]
[1757689994406,0.16,238.59,238.57,80.89999999]
[1757689994914,0.16,238.59,238.58,0.66]
[1757689995413,0.16,238.59,238.58,4.85146617]
[1757689995992,0.16,238.59,238.58,38.83146617]
[1757689999017,0.06,238.61,238.6,26.0]
[1757689999205,0.06,238.61,238.6,140.85999999]
[1757689999411,0.06,238.61,238.6,141.51999999]
[1757690000310,0.06,238.61,238.6,145.71111482]
[1757690000509,0.06,238.62,238.6,145.71111482]
[1757690000709,0.06,238.64,238.61,0.66]
[1757690000911,0.06,238.64,238.62,34.62]
[1757690002421,0.06,238.64,238.63,38.15058793]
[1757690002725,1.10687957,238.64,238.63,38.15058793]
[1757690003225,1.10687957,238.64,238.63,38.81058793]
[1757690003421,0.06,238.64,238.63,38.15058793]
[1757690003625,0.06,238.64,238.63,38.13058793]
[1757690005536,1.79682108,238.64,238.61,4.19093918]
[1757690007529,2.10890819,238.61,238.56,14.6713615]
[1757690007741,1.04702057,238.6,238.56,14.6713615]
[1757690007910,0.69,238.59,238.56,4.19181757]
[1757690008227,0.69,238.58,238.56,4.19181757]
[1757690008826,0.69,238.58,238.55,14.67197652]
[1757690009227,2.10890819,238.61,238.55,14.67197652]
[1757690009420,1.73707122,238.6,238.55,14.67197652]
[1757690009620,1.73707122,238.59,238.55,14.67197652]
[1757690009818,0.69,238.59,238.55,14.67197652]
[1757690010224,2.79890819,238.61,238.55,14.67197652]
[1757690010534,1.04707122,238.6,238.56,0.71]
[1757690010736,0.06,238.64,238.57,34.63]
[1757690010917,1.04697047,238.63,238.58,14.6701316]
[1757690011117,0.06,238.64,238.59,33.92]
[1757690011118,1.04697047,238.62,238.59,33.92]
[1757690011329,1.04697047,238.61,238.59,33.92]
[1757690011508,0.06,238.64,238.59,33.92]
[1757690011714,1.04697055,238.63,238.59,33.92]
[1757690012023,3.84587874,238.62,238.59,33.92]
[1757690012230,1.73697055,238.61,238.59,33.92]
[1757690012425,0.69,238.6,238.58,14.6701316]
[1757690012634,0.69,238.6,238.58,4.19146617]
[1757690013418,0.69,238.59,238.56,4.19181757]
[1757690013614,0.69,238.58,238.56,4.19181757]
[1757690014634,0.69,238.58,238.55,4.19199329]
[1757690015013,0.06,238.59,238.55,14.67197652]
[1757690015209,0.75,238.59,238.55,14.67197652]
[1757690015819,0.06,238.59,238.56,0.71]
[1757690016241,0.06,238.59,238.57,0.71]
[1757690016612,0.06,238.59,238.58,4.19146617]
[1757690017512,0.06,238.59,238.58,4.90146617]
[1757690017914,0.06,238.59,238.58,30.90146617]
[1757690018127,0.06,238.59,238.58,64.78146617]
[1757690022142,0.06,238.59,238.58,30.19146617]
[1757690022328,0.06,238.59,238.58,64.07146617]
[1757690022729,0.06,238.59,238.58,30.19146617]
[1757690022934,0.06,238.59,238.58,64.05146617]
[1757690023338,0.06,238.59,238.58,30.19146617]
[1757690023532,0.75,238.59,238.58,4.19146617]
[1757690023746,0.75,238.59,238.58,85.09146616]
[1757690023939,1.79701202,238.59,238.58,85.09146616]
[1757690026953,1.10701202,238.59,238.58,85.09146616]
[1757690028934,1.10701202,238.59,238.58,119.63146616]
[1757690029132,0.06,238.59,238.58,119.63146616]
[1757690029346,1.10695756,238.59,238.58,119.63146616]
[1757690029852,1.10695756,238.59,238.58,38.73146617]
[1757690030442,1.10695756,238.59,238.58,4.19146617]
[1757690031852,1.78695756,238.59,238.58,4.19146617]
[1757690032348,1.10695756,238.59,238.57,4.19164186]
[1757690032523,1.04695756,238.58,238.57,4.19164186]
[1757690033240,0.06,238.59,238.58,26.0]
[1757690033444,0.06,238.59,238.58,26.68]